Workbook

Sheet Sheet1
A1: 附件1
A2: 贵州省2022年特岗教师招聘计划表
A3: 序号 | B3: 县名 | C3: 中央“特岗计划” | V3: 地方特岗 | W3: 备注
C4: 招聘岗位总数 | D4: 学段 | E4: 小计 | F4: 语文 | G4: 数学 | H4: 英语 | I4: 物理 | J4: 化学 | K4: 生物 | L4: 地理 | M4: 历史 | N4: 政治 | O4: 音乐 | P4: 体育 | Q4: 美术 | R4: 信息技术 | S4: 科学 | T4: 心理健康 | U4: 其他 | V4: 幼儿园
A5: 1 | B5: 云岩区 | C5: 28 | D5: 初中
D6: 小学 | E6: 28 | F6: 7 | G6: 8 | H6: 1 | O6: 2 | P6: 4 | Q6: 1 | R6: 2 | S6: 3
A7: 2 | B7: 观山湖区 | C7: 20 | D7: 初中 | E7: 3 | G7: 1 | H7: 1 | M7: 1
D8: 小学 | E8: 17 | F8: 3 | G8: 8 | H8: 2 | O8: 3 | P8: 1
A9: 3 | B9: 白云区 | C9: 25 | D9: 初中
D10: 小学 | E10: 25 | F10: 9 | G10: 10 | H10: 2 | O10: 1 | Q10: 1 | S10: 2
A11: 4 | B11: 乌当区 | C11: 10 | D11: 初中 | E11: 1 | H11: 1
D12: 小学 | E12: 9 | F12: 4 | H12: 1 | O12: 2 | P12: 1 | R12: 1
A13: 5 | B13: 花溪区 | C13: 41 | D13: 初中 | E13: 4 | G13: 1 | K13: 1 | M13: 1 | N13: 1
D14: 小学 | E14: 37 | F14: 9 | G14: 7 | H14: 2 | N14: 5 | O14: 1 | P14: 3 | Q14: 4 | S14: 6
A15: 6 | B15: 修文县 | C15: 40 | D15: 初中
D16: 小学 | E16: 40 | F16: 13 | G16: 11 | H16: 2 | N16: 1 | O16: 5 | P16: 4 | Q16: 2 | S16: 2
A17: 7 | B17: 开阳县 | C17: 40 | D17: 初中 | E17: 21 | F17: 4 | G17: 4 | H17: 1 | I17: 3 | K17: 1 | L17: 2 | M17: 1 | N17: 2 | O17: 2 | P17: 1
D18: 小学 | E18: 19 | F18: 5 | G18: 2 | H18: 5 | N18: 4 | P18: 2 | Q18: 1
A19: 8 | B19: 息烽县 | C19: 31 | D19: 初中 | E19: 4 | F19: 2 | G19: 2
D20: 小学 | E20: 27 | F20: 9 | G20: 10 | H20: 4 | Q20: 2 | S20: 2
A21: 9 | B21: 清镇市 | C21: 160 | D21: 初中 | E21: 100 | F21: 17 | G21: 18 | H21: 14 | I21: 5 | K21: 4 | L21: 5 | M21: 4 | N21: 6 | O21: 9 | P21: 10 | Q21: 6 | R21: 2
D22: 小学 | E22: 60 | F22: 14 | G22: 14 | H22: 9 | N22: 3 | O22: 6 | P22: 6 | Q22: 5 | R22: 3
A23: 贵阳市 | C23: 395 | D23: 初中 | E23: 133 | F23: 24 | G23: 26 | H23: 17 | I23: 7 | K23: 6 | L23: 7 | M23: 7 | N23: 9 | O23: 11 | P23: 11 | Q23: 6 | R23: 2
D24: 小学 | E24: 262 | F24: 72 | G24: 70 | H24: 28 | N24: 13 | O24: 20 | P24: 21 | Q24: 16 | R24: 7 | S24: 15
A25: 1 | B25: 西秀区 | C25: 149 | D25: 初中 | E25: 89 | F25: 15 | G25: 13 | H25: 11 | I25: 7 | J25: 7 | K25: 4 | L25: 3 | M25: 8 | N25: 9 | O25: 4 | P25: 4 | Q25: 2 | R25: 1 | T25: 1
D26: 小学 | E26: 60 | F26: 22 | G26: 11 | H26: 6 | N26: 10 | O26: 2 | P26: 2 | Q26: 2 | R26: 1 | S26: 1 | T26: 3
A27: 2 | B27: 平坝区 | C27: =E27+E28 -> 36 | D27: 初中 | E27: 11 | G27: 2 | H27: 1 | I27: 1 | M27: 1 | N27: 1 | O27: 1 | P27: 3 | R27: 1 | V27: 4
D28: 小学 | E28: 25 | F28: 5 | G28: 3 | H28: 1 | N28: 4 | O28: 5 | P28: 4 | Q28: 2 | R28: 1
A29: 3 | B29: 普定县 | C29: 80 | D29: 初中 | E29: =SUM(F29:U29) -> 25 | F29: 2 | G29: 4 | H29: 5 | I29: 2 | K29: 3 | L29: 1 | M29: 2 | N29: 2 | O29: 1 | P29: 3
D30: 小学 | E30: 55 | F30: 24 | G30: 12 | H30: 6 | N30: 2 | O30: 2 | P30: 3 | Q30: 1 | R30: 2 | S30: 2 | T30: 1
A31: 4 | B31: 镇宁自治县 | C31: 260 | D31: 初中 | E31: 52 | F31: 6 | G31: 15 | H31: 7 | I31: 1 | J31: 1 | K31: 2 | L31: 1 | M31: 1 | O31: 2 | P31: 3 | Q31: 4 | R31: 3 | T31: 6
D32: 小学 | E32: 208 | F32: 58 | G32: 54 | H32: 14 | N32: 14 | O32: 16 | P32: 15 | Q32: 13 | R32: 9 | S32: 14 | T32: 1
A33: 5 | B33: 关岭自治县 | C33: 200 | D33: 初中 | E33: 51 | F33: 8 | G33: 4 | H33: 9 | I33: 4 | J33: 2 | K33: 4 | L33: 2 | M33: 2 | N33: 4 | O33: 4 | P33: 3 | Q33: 1 | R33: 2 | S33: 0 | T33: 2 | V33: 40
D34: 小学 | E34: 149 | F34: 55 | G34: 37 | H34: 19 | N34: 5 | O34: 8 | P34: 11 | Q34: 8 | R34: 2 | S34: 2 | T34: 2
A35: 6 | B35: 紫云自治县 | C35: 120 | D35: 初中 | E35: 70 | F35: 15 | G35: 19 | H35: 10 | I35: 3 | J35: 4 | K35: 2 | L35: 2 | M35: 1 | N35: 2 | O35: 3 | P35: 1 | Q35: 3 | R35: 2 | T35: 3 | V35: 10
D36: 小学 | E36: 50 | F36: 10 | G36: 10 | H36: 9 | O36: 6 | P36: 3 | Q36: 4 | R36: 2 | S36: 3 | T36: 1 | U36: 2(特殊教育）
A37: 7 | B37: 经济技术开发区 | C37: 10 | D37: 初中 | E37: 3 | F37: 1 | G37: 1 | P37: 1
D38: 小学 | E38: 7 | F38: 3 | G38: 1 | O38: 1 | P38: 1 | Q38: 1
A39: 安顺市 | C39: 855 | D39: 初中 | E39: 301 | F39: 47 | G39: 58 | H39: 43 | I39: 18 | J39: 14 | K39: 15 | L39: 9 | M39: 15 | N39: 18 | O39: 15 | P39: 18 | Q39: 10 | R39: 9 | S39: 0 | T39: 12 | V39: 54
D40: 小学 | E40: 554 | F40: 177 | G40: 128 | H40: 55 | N40: 35 | O40: 40 | P40: 39 | Q40: 31 | R40: 17 | S40: 22 | T40: 8 | U40: 2
A41: 1 | B41: 红花岗 | C41: =E41+E42 -> 20 | D41: 初中 | E41: 5 | F41: 1 | G41: 1 | H41: 1 | I41: 1 | N41: 1 | V41: 10
D42: 小学 | E42: 15 | F42: 9 | G42: 3 | H42: 2 | T42: 1
A43: 2 | B43: 播州区 | C43: 50 | D43: 初中 | E43: 20 | F43: 2 | G43: 4 | H43: 4 | I43: 2 | L43: 1 | M43: 2 | N43: 1 | O43: 1 | P43: 2 | R43: 1 | V43: 20
D44: 小学 | E44: 30 | F44: 10 | G44: 13 | H44: 4 | P44: 1 | Q44: 1 | R44: 1
A45: 3 | B45: 桐梓县 | C45: 80 | D45: 初中 | E45: 8 | F45: 2 | G45: 1 | H45: 1 | O45: 1 | P45: 1 | Q45: 1 | T45: 1 | V45: 20
D46: 小学 | E46: 72 | F46: 23 | G46: 20 | H46: 11 | O46: 4 | P46: 3 | Q46: 8 | R46: 1 | T46: 2
A47: 4 | B47: 绥阳县 | C47: =E47+E48 -> 60 | D47: 初中 | E47: 10 | F47: 2 | G47: 1 | H47: 2 | I47: 1 | J47: 1 | K47: 1 | L47: 1 | Q47: 1 | V47: 15
D48: 小学 | E48: 50 | F48: 15 | G48: 8 | H48: 10 | O48: 5 | P48: 2 | Q48: 5 | R48: 1 | S48: 1 | T48: 3
A49: 5 | B49: 正安县 | C49: 30 | D49: 初中 | E49: 10 | F49: 4 | H49: 4 | N49: 1 | O49: 1
D50: 小学 | E50: 20 | F50: 6 | G50: 4 | H50: 6 | O50: 2 | Q50: 1 | R50: 1
A51: 6 | B51: 道真县 | C51: 80 | D51: 初中 | E51: 35 | F51: 5 | G51: 4 | H51: 4 | I51: 3 | J51: 2 | K51: 4 | L51: 3 | N51: 4 | Q51: 2 | T51: 4 | V51: 20
D52: 小学 | E52: 45 | F52: 16 | G52: 9 | H52: 4 | O52: 2 | P52: 9 | S52: 5
A53: 7 | B53: 湄潭县 | C53: =E53+E54 -> 100 | D53: 初中 | E53: 30 | F53: 3 | G53: 3 | H53: 3 | L53: 3 | O53: 4 | P53: 5 | Q53: 4 | T53: 5 | V53: 25
D54: 小学 | E54: 70 | F54: 10 | G54: 8 | H54: 3 | O54: 14 | P54: 14 | Q54: 14 | R54: 3 | S54: 4
A55: 8 | B55: 凤冈县 | C55: 50 | D55: 初中 | E55: 10 | F55: 1 | H55: 4 | I55: 1 | J55: 1 | R55: 3 | V55: 20
D56: 小学 | E56: 40 | F56: 16 | G56: 9 | H56: 3 | O56: 4 | P56: 1 | Q56: 1 | R56: 3 | S56: 1 | T56: 2
A57: 9 | B57: 务川县 | C57: 40 | D57: 初中 | E57: 20 | F57: 6 | G57: 2 | H57: 5 | I57: 1 | K57: 1 | L57: 1 | M57: 2 | N57: 2
D58: 小学 | E58: 20 | F58: 8 | G58: 6 | H58: 2 | P58: 2 | Q58: 1 | S58: 1
A59: 10 | B59: 余庆县 | C59: =E59+E60 -> 60 | D59: 初中 | E59: 20 | F59: 4 | G59: 3 | H59: 2 | I59: 4 | J59: 1 | K59: 1 | L59: 1 | M59: 2 | O59: 1 | T59: 1
D60: 小学 | E60: 40 | F60: 9 | G60: 14 | H60: 13 | O60: 2 | P60: 2
A61: 11 | B61: 仁怀市 | C61: 50 | D61: 初中
D62: 小学 | E62: 50 | F62: 20 | G62: 20 | H62: 6 | O62: 1 | P62: 1 | Q62: 1 | R62: 1
A63: 12 | B63: 习水县 | C63: 300 | D63: 初中 | E63: 170 | F63: 24 | G63: 28 | H63: 26 | I63: 14 | J63: 9 | K63: 6 | L63: 10 | M63: 12 | N63: 10 | O63: 7 | P63: 13 | Q63: 8 | R63: 3
D64: 小学 | E64: 130 | F64: 38 | G64: 16 | H64: 24 | N64: 3 | O64: 10 | P64: 19 | Q64: 9 | R64: 6 | S64: 5
A65: 13 | B65: 赤水市 | C65: =E65+E66 -> 35 | D65: 初中 | E65: 35 | F65: 3 | G65: 9 | H65: 5 | I65: 4 | J65: 1 | M65: 2 | N65: 2 | O65: 5 | P65: 1 | Q65: 2 | R65: 1 | V65: 8
D66: 小学
A67: 遵义市 | C67: =SUM(C41:C66) -> 955 | D67: 初中 | E67: 373 | F67: 57 | G67: 56 | H67: 61 | I67: 31 | J67: 15 | K67: 13 | L67: 20 | M67: 20 | N67: 21 | O67: 20 | P67: 22 | Q67: 18 | R67: 8 | T67: 11 | V67: 138
D68: 小学 | E68: 582 | F68: 180 | G68: 130 | H68: 88 | N68: 3 | O68: 44 | P68: 54 | Q68: 41 | R68: 17 | S68: 17 | T68: 8
A69: 1 | B69: 都匀市 | C69: =E69+E70 -> 35 | D69: 初中 | E69: =SUM(F69:U69) -> 7 | G69: 2 | K69: 1 | L69: 2 | M69: 2 | V69: 15
D70: 小学 | E70: 28 | N70: 10 | O70: 3 | P70: 4 | Q70: 4 | R70: 2 | S70: 3 | T70: 2
A71: 2 | B71: 福泉市 | C71: 60 | D71: 初中 | E71: 30 | F71: 5 | G71: 5 | H71: 8 | I71: 1 | J71: 2 | L71: 1 | M71: 3 | N71: 3 | P71: 1 | T71: 1 | V71: 15
D72: 小学 | E72: 30 | F72: 7 | G72: 6 | H72: 7 | O72: 1 | P72: 2 | Q72: 3 | R72: 2 | S72: 1 | T72: 1
A73: 3 | B73: 瓮安县 | C73: 75 | D73: 初中 | E73: 25 | G73: 2 | H73: 2 | K73: 2 | L73: 4 | M73: 7 | N73: 6 | P73: 2 | V73: 45
D74: 小学 | E74: 50 | F74: 14 | N74: 12 | O74: 3 | P74: 10 | Q74: 10 | R74: 1
A75: 4 | B75: 贵定县 | C75: =E75+E76 -> 58 | D75: 初中 | E75: 20 | F75: 5 | G75: 5 | I75: 3 | L75: 1 | M75: 3 | N75: 2 | P75: 1 | V75: 12
D76: 小学 | E76: 38 | F76: 15 | G76: 15 | N76: 3 | P76: 2 | T76: 3
A77: 5 | B77: 惠水县 | C77: 80 | D77: 初中 | E77: 20 | F77: 3 | G77: 2 | H77: 4 | I77: 2 | L77: 1 | M77: 2 | N77: 2 | O77: 1 | P77: 1 | Q77: 1 | R77: 1
D78: 小学 | E78: 60 | F78: 15 | G78: 13 | H78: 7 | N78: 3 | O78: 5 | P78: 6 | Q78: 5 | R78: 2 | S78: 2 | T78: 2
A79: 6 | B79: 长顺县 | C79: 47 | D79: 初中 | E79: 5 | F79: 1 | G79: 1 | H79: 2 | M79: 1 | V79: 20
D80: 小学 | E80: 42 | F80: 17 | G80: 17 | H80: 6 | T80: 2
A81: 7 | B81: 三都县 | C81: =E81+E82 -> 60 | D81: 初中 | E81: 6 | H81: 1 | I81: 1 | L81: 1 | N81: 1 | O81: 1 | P81: 1
D82: 小学 | E82: 54 | F82: 9 | G82: 9 | H82: 8 | O82: 8 | P82: 9 | Q82: 8 | S82: 1 | T82: 2
A83: 8 | B83: 荔波县 | C83: 24 | D83: 初中 | E83: 1 | O83: 1 | V83: 6
D84: 小学 | E84: 23 | F84: 2 | G84: 1 | H84: 5 | N84: 3 | O84: 3 | P84: 3 | Q84: 4 | R84: 2
A85: 9 | B85: 罗甸县 | C85: 50 | D85: 初中 | E85: 15 | F85: 3 | G85: 5 | H85: 2 | I85: 1 | N85: 2 | T85: 2
D86: 小学 | E86: 35 | F86: 10 | G86: 10 | H86: 2 | N86: 3 | O86: 2 | P86: 2 | Q86: 2 | T86: 4
A87: 黔南州 | C87: =E87+E88 -> 489 | D87: 初中 | E87: =SUM(E69,E71,E73,E75,E77,E79,E81,E83,E85) -> 129 | F87: 17 | G87: 22 | H87: 19 | I87: 8 | J87: 2 | K87: 3 | L87: 10 | M87: 18 | N87: 16 | O87: 3 | P87: 6 | Q87: 1 | R87: 1 | T87: 3 | V87: 113
D88: 小学 | E88: =SUM(E70,E72,E74,E76,E78,E80,E82,E84,E86) -> 360 | F88: 89 | G88: 71 | H88: 35 | N88: 34 | O88: 25 | P88: 38 | Q88: 36 | R88: 9 | S88: 7 | T88: 16
A89: 1 | B89: 兴仁市 | C89: 80 | D89: 初中 | E89: 30 | F89: 6 | G89: 5 | H89: 3 | I89: 3 | K89: 2 | L89: 2 | M89: 2 | N89: 3 | O89: 1 | Q89: 1 | T89: 2 | V89: 20
D90: 小学 | E90: 50 | F90: 25 | G90: 18 | H90: 1 | N90: 1 | O90: 3 | P90: 2
A91: 2 | B91: 安龙县 | C91: 50 | D91: 初中 | E91: 15 | F91: 1 | G91: 3 | H91: 1 | K91: 3 | L91: 1 | M91: 2 | N91: 1 | O91: 2 | P91: 1 | V91: 12
D92: 小学 | E92: 35 | F92: 15 | G92: 9 | H92: 3 | O92: 2 | P92: 2 | R92: 2 | T92: 2
A93: 3 | B93: 贞丰县 | C93: 10 | D93: 初中 | E93: 10 | G93: 3 | H93: 5 | I93: 1 | P93: 1 | V93: 30
D94: 小学
A95: 4 | B95: 册亨县 | C95: 30 | D95: 初中 | E95: 13 | F95: 3 | G95: 2 | H95: 3 | I95: 2 | K95: 1 | M95: 1 | N95: 1
D96: 小学 | E96: 17 | F96: 5 | G96: 4 | H96: 2 | N96: 3 | P96: 1 | S96: 2
A97: 5 | B97: 望谟县 | C97: 10 | D97: 初中 | E97: =SUM(F97:U97) -> 5 | F97: 1 | G97: 1 | T97: 3 | V97: 10
D98: 小学 | E98: =SUM(F98:U98) -> 5 | S98: 2 | T98: 3
A99: 6 | B99: 义龙新区 | C99: 50 | D99: 初中 | E99: 18 | G99: 2 | H99: 2 | I99: 3 | J99: 1 | K99: 1 | L99: 1 | M99: 1 | N99: 1 | O99: 1 | P99: 2 | Q99: 1 | T99: 2 | V99: 10
D100: 小学 | E100: 32 | F100: 10 | G100: 10 | H100: 3 | O100: 2 | P100: 3 | Q100: 2 | R100: 1 | T100: 1
A101: 7 | B101: 普安县 | C101: 30 | D101: 初中 | E101: 10 | G101: 2 | I101: 1 | L101: 2 | M101: 1 | O101: 1 | T101: 3 | V101: 30
D102: 小学 | E102: 20 | F102: 5 | G102: 4 | H102: 4 | O102: 1 | P102: 3 | Q102: 2 | T102: 1
A103: 黔西南州 | C103: =E103+E104 -> 260 | D103: 初中 | E103: =E89+E91+E93+E95+E97+E99+E101 -> 101 | F103: 11 | G103: 18 | H103: 14 | I103: 10 | J103: 1 | K103: 7 | L103: 6 | M103: 7 | N103: 6 | O103: 5 | P103: 4 | Q103: 2 | T103: 10 | V103: =V89+V91+V93+V97+V99+V101 -> 112
D104: 小学 | E104: =E90+E92+E94+E96+E98+E100+E102 -> 159 | F104: 60 | G104: 45 | H104: 13 | N104: 4 | O104: 8 | P104: 11 | Q104: 4 | R104: 3 | S104: 4 | T104: 7
A105: 1 | B105: 六枝特区 | C105: 282 | D105: 初中 | E105: 90 | F105: 18 | G105: 15 | H105: 15 | I105: 11 | J105: 3 | K105: 3 | L105: 3 | M105: 5 | N105: 5 | O105: 3 | P105: 7 | Q105: 1 | T105: 1
D106: 小学 | E106: 192 | F106: 56 | G106: 62 | H106: 20 | N106: 4 | O106: 14 | P106: 11 | Q106: 9 | R106: 7 | S106: 8 | T106: 1
A107: 2 | B107: 盘州市 | C107: 100 | D107: 初中
D108: 小学 | E108: 100 | F108: 39 | G108: 34 | H108: 14 | O108: 3 | P108: 6 | Q108: 2 | T108: 2
A109: 3 | B109: 水城区 | C109: 60 | D109: 初中 | E109: 10 | F109: 3 | G109: 2 | H109: 2 | I109: 1 | L109: 1 | P109: 1
D110: 小学 | E110: 50 | F110: 21 | G110: 17 | H110: 3 | O110: 4 | P110: 5
A111: 4 | B111: 钟山区 | C111: 80 | D111: 初中 | E111: =SUM(F111:U111) -> 20 | F111: 3 | G111: 3 | H111: 2 | J111: 1 | K111: 2 | L111: 2 | N111: 2 | O111: 3 | Q111: 2 | V111: 20
D112: 小学 | E112: =SUM(F112:U112) -> 60 | F112: 10 | G112: 10 | H112: 7 | N112: 8 | O112: 5 | P112: 5 | Q112: 5 | R112: 5 | S112: 5
A113: 六盘水市 | C113: =SUM(C105:C112) -> 522 | D113: 初中 | E113: 120 | F113: 24 | G113: 20 | H113: 19 | I113: 12 | J113: 4 | K113: 5 | L113: 6 | M113: 5 | N113: 7 | O113: 6 | P113: 8 | Q113: 3 | T113: 1 | V113: 20
D114: 小学 | E114: 402 | F114: 126 | G114: 123 | H114: 44 | N114: 12 | O114: 26 | P114: 27 | Q114: 16 | R114: 12 | S114: 13 | T114: 3
A115: 1 | B115: 凯里市 | C115: 90 | D115: 初中 | E115: 31 | F115: 8 | G115: 3 | H115: 6 | I115: 3 | J115: 1 | K115: 1 | L115: 2 | M115: 0 | N115: 3 | O115: 3 | P115: 1 | Q115: 0 | R115: 0 | S115: 0 | T115: 0 | U115: 0
D116: 小学 | E116: 59 | F116: 20 | G116: 15 | H116: 3 | I116: 0 | J116: 0 | K116: 0 | L116: 0 | M116: 0 | N116: 0 | O116: 7 | P116: 5 | Q116: 5 | R116: 0 | S116: 4 | T116: 0 | U116: 0
A117: 2 | B117: 三穗县 | C117: 65 | D117: 初中 | E117: 8 | F117: 1 | G117: 2 | H117: 2 | M117: 1 | N117: 1 | T117: 1
D118: 小学 | E118: 57 | F118: 16 | G118: 14 | H118: 6 | O118: 5 | P118: 2 | Q118: 5 | R118: 2 | T118: 7
A119: 3 | B119: 台江县 | C119: =SUM(E119:E120) -> 54 | D119: 初中 | E119: =SUM(F119:U119) -> 8 | F119: 1 | G119: 1 | H119: 2 | N119: 2 | P119: 1 | R119: 1
D120: 小学 | E120: 46 | F120: 10 | G120: 9 | H120: 2 | N120: 6 | O120: 3 | P120: 3 | Q120: 3 | R120: 2 | S120: 3 | T120: 5
A121: 4 | B121: 丹寨县 | C121: 25 | D121: 初中 | E121: 6 | F121: 1 | G121: 2 | H121: 2 | N121: 1
D122: 小学 | E122: 19 | F122: 2 | G122: 2 | H122: 5 | P122: 3 | T122: 7
A123: 5 | B123: 榕江县 | C123: 60 | D123: 初中 | E123: 7 | G123: 4 | I123: 1 | N123: 1 | P123: 1 | V123: 7
D124: 小学 | E124: 53 | F124: 24 | G124: 20 | H124: 4 | N124: 1 | R124: 1 | S124: 3
A125: 6 | B125: 黎平县 | C125: 80 | D125: 初中 | E125: 25 | F125: 3 | G125: 5 | H125: 4 | I125: 2 | K125: 1 | L125: 1 | M125: 2 | N125: 1 | O125: 2 | P125: 4 | V125: 10
D126: 小学 | E126: 55 | F126: 17 | G126: 24 | H126: 6 | O126: 1 | P126: 3 | Q126: 2 | R126: 2
A127: 7 | B127: 岑巩县 | C127: 20 | D127: 初中 | E127: 10 | F127: 2 | G127: 2 | H127: 2 | M127: 1 | O127: 1 | P127: 1 | Q127: 1
D128: 小学 | E128: 10 | F128: 2 | G128: 1 | H128: 1 | N128: 1 | O128: 1 | P128: 2 | Q128: 1 | S128: 1
A129: 8 | B129: 锦屏县 | C129: 50 | D129: 初中 | E129: 15 | F129: 4 | G129: 4 | H129: 1 | J129: 1 | L129: 1 | M129: 1 | N129: 1 | O129: 1 | P129: 1
D130: 小学 | E130: 35 | F130: 12 | G130: 10 | H130: 3 | N130: 2 | O130: 1 | P130: 2 | Q130: 2 | R130: 2 | T130: 1
A131: 9 | B131: 从江县 | C131: 117 | D131: 初中 | E131: 40 | F131: 4 | G131: 4 | H131: 6 | I131: 2 | J131: 2 | K131: 2 | N131: 3 | O131: 5 | P131: 5 | Q131: 5 | T131: 2
D132: 小学 | E132: 77 | F132: 10 | G132: 10 | H132: 12 | N132: 6 | O132: 8 | P132: 8 | Q132: 8 | R132: 5 | S132: 5 | T132: 5
A133: 10 | B133: 剑河县 | C133: 50 | D133: 初中 | E133: 16 | F133: 3 | G133: 5 | L133: 1 | M133: 3 | N133: 1 | P133: 1 | R133: 2
D134: 小学 | E134: 34 | F134: 10 | G134: 10 | O134: 1 | P134: 3 | Q134: 3 | T134: 7
A135: 11 | B135: 天柱县 | C135: 100 | D135: 初中 | E135: 20 | F135: 3 | G135: 2 | H135: 3 | I135: 1 | J135: 1 | K135: 1 | L135: 1 | M135: 1 | N135: 1 | O135: 2 | P135: 2 | Q135: 2
D136: 小学 | E136: 80 | F136: 30 | G136: 15 | H136: 10 | O136: 10 | P136: 10 | Q136: 5
A137: 12 | B137: 镇远县 | C137: 40 | D137: 初中 | E137: 15 | F137: 4 | G137: 2 | H137: 4 | K137: 2 | N137: 1 | O137: 1 | P137: 1
D138: 小学 | E138: 25 | F138: 8 | G138: 7 | H138: 5 | O138: 1 | P138: 1 | Q138: 1 | T138: 2
A139: 13 | B139: 黄平县 | C139: 45 | D139: 初中 | E139: 10 | F139: 3 | G139: 4 | H139: 3 | V139: 14
D140: 小学 | E140: 35 | F140: 4 | G140: 4 | H140: 2 | N140: 8 | O140: 4 | P140: 3 | Q140: 4 | S140: 6
A141: 14 | B141: 施秉县 | C141: 16 | D141: 初中 | V141: 4
D142: 小学 | E142: 16 | F142: 9 | G142: 7
A143: 黔东南州 | C143: =SUM(C115:C142) -> 812 | D143: 初中 | E143: =E115+E117+E119+E121+E123+E125+E127+E129+E131+E133+E135+E137+E139+E141 -> 211 | F143: 37 | G143: 40 | H143: 35 | I143: 9 | J143: 5 | K143: 7 | L143: 6 | M143: 9 | N143: 16 | O143: 15 | P143: 18 | Q143: 8 | R143: 3 | S143: 0 | T143: 3 | U143: 0 | V143: =SUM(V115:V142) -> 35
D144: 小学 | E144: =E116+E118+E120+E122+E124+E126+E128+E130+E132+E134+E136+E138+E140+E142 -> 601 | F144: 174 | G144: 148 | H144: 59 | I144: 0 | J144: 0 | K144: 0 | L144: 0 | M144: 0 | N144: 24 | O144: 42 | P144: 45 | Q144: 39 | R144: 14 | S144: 22 | T144: 34 | U144: 0
A145: 1 | B145: 碧江区 | C145: =E145+E146 -> 81 | D145: 初中 | E145: =F145+G145+H145+I145+J145+K145+L145+M145+N145+O145+P145+Q145+R145+S145+T145+U145 -> 25 | F145: 5 | G145: 5 | H145: 4 | I145: 3 | J145: 1 | K145: 1 | L145: 1 | M145: 1 | N145: 1 | P145: 2 | R145: 1 | V145: 70
D146: 小学 | E146: 56 | F146: 19 | G146: 15 | H146: 6 | O146: 4 | P146: 6 | Q146: 4 | R146: 2
A147: 2 | B147: 万山区 | C147: =E147+E148 -> 30 | D147: 初中 | E147: 6 | G147: 2 | I147: 2 | L147: 2
D148: 小学 | E148: 24 | F148: 6 | G148: 2 | H148: 4 | N148: 2 | O148: 2 | P148: 2 | Q148: 2 | R148: 2 | T148: 2
A149: 3 | B149: 松桃县 | D149: 初中 | V149: 50
D150: 小学
A151: 4 | B151: 玉屏县 | C151: =E151+E152 -> 60 | D151: 初中 | E151: =F151+G151+H151+I151+J151+K151+L151+M151+N151+O151+P151+Q151+R151+S151+T151+U151 -> 30 | F151: 6 | G151: 6 | H151: 3 | I151: 3 | J151: 3 | K151: 3 | P151: 2 | Q151: 2 | T151: 2
D152: 小学 | E152: 30 | F152: 15 | G152: 15
A153: 5 | B153: 江口县 | C153: 20 | D153: 初中 | E153: 5 | F153: 1 | G153: 2 | R153: 1 | T153: 1 | V153: 20
D154: 小学 | E154: 15 | F154: 2 | G154: 3 | H154: 1 | O154: 2 | P154: 2 | Q154: 1 | R154: 2 | S154: 1 | T154: 1
A155: 6 | B155: 石阡县 | C155: 26 | D155: 初中 | E155: 8 | F155: 1 | G155: 2 | K155: 2 | L155: 1 | M155: 1 | T155: 1 | V155: 24
D156: 小学 | E156: 18 | F156: 5 | G156: 5 | H156: 2 | N156: 1 | O156: 1 | P156: 1 | Q156: 1 | S156: 1 | T156: 1
A157: 7 | B157: 印江县 | C157: =E157+E158 -> 20 | D157: 初中 | E157: 5 | F157: 1 | G157: 1 | H157: 1 | K157: 1 | T157: 1 | V157: 30 | W157: 中央特岗小学“其他”栏中：舞蹈2人、书法1人。
D158: 小学 | E158: 15 | F158: 2 | G158: 2 | H158: 1 | O158: 1 | P158: 1 | Q158: 2 | R158: 1 | S158: 1 | T158: 1 | U158: 3
A159: 8 | B159: 思南县 | C159: 85 | D159: 初中 | E159: 27 | F159: 3 | G159: 3 | H159: 3 | I159: 3 | J159: 3 | K159: 2 | L159: 2 | M159: 3 | N159: 2 | Q159: 3 | V159: 40 | W159: 其中：“体育”学科中招聘专业足球教师2名，“美术”学科中初中、小学各招聘专业书法教师2名。
D160: 小学 | E160: 58 | F160: 15 | G160: 15 | H160: 10 | O160: 2 | P160: 4 | Q160: 3 | R160: 2 | S160: 5 | T160: 2
A161: 9 | B161: 德江县 | C161: 50 | D161: 初中 | E161: 20 | F161: 4 | G161: 2 | H161: 2 | I161: 2 | J161: 2 | L161: 1 | M161: 2 | N161: 3 | P161: 1 | Q161: 1 | V161: 30
D162: 小学 | E162: 30 | F162: 10 | G162: 3 | H162: 8 | N162: 1 | O162: 2 | P162: 3 | Q162: 2 | R162: 1
A163: 10 | B163: 沿河县 | C163: =E163+E164 -> 150 | D163: 初中 | E163: 110 | F163: 20 | G163: 20 | H163: 25 | I163: 15 | J163: 5 | K163: 3 | L163: 3 | M163: 5 | N163: 5 | P163: 5 | R163: 2 | T163: 2 | V163: 30
D164: 小学 | E164: 40 | F164: 10 | G164: 10 | H164: 8 | O164: 2 | P164: 3 | Q164: 2 | S164: 5
A165: 铜仁市 | C165: =SUM(C145:C164) -> 522 | D165: 初中 | E165: =E145+E147+E149+E151+E153+E155+E157+E159+E161+E163 -> 236 | F165: 41 | G165: 43 | H165: 38 | I165: 28 | J165: 14 | K165: 12 | L165: 10 | M165: 12 | N165: 11 | P165: =P145+P147+P149+P151+P153+P155+P157+P159+P161+P163 -> 10 | Q165: 6 | R165: 4 | T165: =T145+T147+T149+T151+T153+T155+T157+T159+T161+T163 -> 7 | V165: =SUM(V145:V164) -> 294
D166: 小学 | E166: =E146+E148+E150+E152+E154+E156+E158+E160+E162+E164 -> 286 | F166: 84 | G166: 70 | H166: 40 | N166: =N146+N148+N150+N152+N154+N156+N158+N160+N162+N164 -> 4 | O166: 16 | P166: 22 | Q166: 17 | R166: 10 | S166: 13 | T166: 7 | U166: 3
A167: 1 | B167: 七星关区 | C167: 280 | D167: 初中 | E167: 100 | F167: 13 | G167: 10 | H167: 13 | I167: 5 | J167: 5 | K167: 2 | L167: 3 | M167: 5 | N167: 5 | O167: 10 | P167: 11 | Q167: 9 | R167: 5 | S167: 0 | T167: 4 | U167: 0 | V167: 70
D168: 小学 | E168: 180 | F168: 26 | G168: 23 | H168: 13 | I168: 0 | J168: 0 | K168: 0 | L168: 0 | M168: 0 | N168: 9 | O168: 30 | P168: 30 | Q168: 28 | R168: 13 | S168: 4 | T168: 4 | U168: 0
A169: 2 | B169: 大方县 | C169: 240 | D169: 初中 | E169: 108 | F169: 22 | G169: 15 | H169: 11 | I169: 16 | J169: 4 | K169: 6 | L169: 7 | M169: 9 | N169: 3 | O169: 1 | P169: 11 | Q169: 2 | R169: 0 | S169: 0 | T169: 1 | U169: 0 | V169: 60
D170: 小学 | E170: 132 | F170: 38 | G170: 36 | H170: 11 | I170: 0 | J170: 0 | K170: 0 | L170: 0 | M170: 0 | N170: 0 | O170: 11 | P170: 9 | Q170: 9 | R170: 5 | S170: 7 | T170: 6 | U170: 0
A171: 3 | B171: 黔西市 | C171: 150 | D171: 初中 | E171: 0 | F171: 0 | G171: 0 | H171: 0 | I171: 0 | J171: 0 | K171: 0 | L171: 0 | M171: 0 | N171: 0 | O171: 0 | P171: 0 | Q171: 0 | R171: 0 | S171: 0 | T171: 0 | U171: 0 | V171: 30
D172: 小学 | E172: 150 | F172: 43 | G172: 30 | H172: 7 | I172: 0 | J172: 0 | K172: 0 | L172: 0 | M172: 0 | N172: 15 | O172: 15 | P172: 15 | Q172: 15 | R172: 5 | S172: 0 | T172: 5 | U172: 0
A173: 4 | B173: 金沙县 | C173: 200 | D173: 初中 | E173: 60 | F173: 10 | G173: 10 | H173: 11 | I173: 5 | J173: 3 | K173: 2 | L173: 4 | M173: 3 | N173: 3 | O173: 0 | P173: 5 | Q173: 0 | R173: 0 | S173: 0 | T173: 4 | U173: 0 | V173: 0
D174: 小学 | E174: 140 | F174: 53 | G174: 37 | H174: 15 | I174: 0 | J174: 0 | K174: 0 | L174: 0 | M174: 0 | N174: 0 | O174: 8 | P174: 12 | Q174: 8 | R174: 2 | S174: 5 | T174: 0 | U174: 0
A175: 5 | B175: 织金县 | C175: 100 | D175: 初中 | E175: 0 | F175: 0 | G175: 0 | H175: 0 | I175: 0 | J175: 0 | K175: 0 | L175: 0 | M175: 0 | N175: 0 | O175: 0 | P175: 0 | Q175: 0 | R175: 0 | S175: 0 | T175: 0 | U175: 0 | V175: 0
D176: 小学 | E176: 100 | F176: 5 | G176: 5 | H176: 10 | I176: 0 | J176: 0 | K176: 0 | L176: 0 | M176: 0 | N176: 5 | O176: 15 | P176: 15 | Q176: 15 | R176: 15 | S176: 5 | T176: 10 | U176: 0
A177: 6 | B177: 纳雍县 | C177: 200 | D177: 初中 | E177: 80 | F177: 3 | G177: 15 | H177: 3 | I177: 5 | J177: 5 | K177: 4 | L177: 4 | M177: 4 | N177: 6 | O177: 5 | P177: 11 | Q177: 5 | R177: 5 | S177: 0 | T177: 5 | U177: 0 | V177: 0
D178: 小学 | E178: 120 | F178: 25 | G178: 25 | H178: 17 | I178: 0 | J178: 0 | K178: 0 | L178: 0 | M178: 0 | N178: 8 | O178: 8 | P178: 14 | Q178: 8 | R178: 5 | S178: 5 | T178: 5 | U178: 0
A179: 7 | B179: 威宁县 | C179: 350 | D179: 初中 | E179: 100 | F179: 8 | G179: 10 | H179: 16 | I179: 8 | J179: 4 | K179: 3 | L179: 5 | M179: 5 | N179: 5 | O179: 5 | P179: 8 | Q179: 3 | R179: 5 | S179: 0 | T179: 10 | U179: 5 | V179: 50
D180: 小学 | E180: 250 | F180: 35 | G180: 35 | H180: 35 | I180: 0 | J180: 0 | K180: 0 | L180: 0 | M180: 0 | N180: 0 | O180: 35 | P180: 35 | Q180: 25 | R180: 20 | S180: 25 | T180: 5 | U180: 0
A181: 8 | B181: 赫章县 | C181: 50 | D181: 初中 | E181: 33 | F181: 6 | G181: 7 | H181: 4 | I181: 5 | J181: 1 | K181: 0 | L181: 1 | M181: 2 | N181: 2 | O181: 0 | P181: 3 | Q181: 1 | R181: 0 | S181: 0 | T181: 1 | V181: 0
D182: 小学 | E182: 17 | F182: 3 | G182: 3 | H182: 2 | I182: 0 | J182: 0 | K182: 0 | L182: 0 | M182: 0 | N182: 0 | O182: 3 | P182: 3 | Q182: 1 | R182: 0 | S182: 2 | T182: 0
A183: 9 | B183: 百里杜鹃 | C183: 20 | D183: 初中 | E183: 4 | F183: 0 | G183: 0 | H183: 0 | I183: 0 | J183: 0 | K183: 1 | L183: 1 | M183: 2 | N183: 0 | O183: 0 | P183: 0 | Q183: 0 | R183: 0 | S183: 0 | T183: 0 | U183: 0 | V183: 4
D184: 小学 | E184: 16 | F184: 0 | G184: 0 | H184: 0 | I184: 0 | J184: 0 | K184: 0 | L184: 0 | M184: 0 | N184: 4 | O184: 0 | P184: 8 | Q184: 2 | R184: 0 | S184: 0 | T184: 2 | U184: 0
A185: 毕节市 | C185: 1590 | D185: 初中 | E185: 485 | F185: 62 | G185: 67 | H185: 58 | I185: 44 | J185: 22 | K185: 18 | L185: 25 | M185: 30 | N185: 24 | O185: 21 | P185: 49 | Q185: 20 | R185: 15 | S185: 0 | T185: 25 | U185: 5 | V185: 214
D186: 小学 | E186: 1105 | F186: 228 | G186: 194 | H186: 110 | I186: 0 | J186: 0 | K186: 0 | L186: 0 | M186: 0 | N186: 41 | O186: 125 | P186: 141 | Q186: 111 | R186: 65 | S186: 53 | T186: 37 | U186: 0
